Cogmind - Beta 15 @@@ ROGUE MODE // 2025.06.23 @ 16:48:15 Player: EX-OCT Result: Destroyed by H-66 Slayer with Gauss Rifle Performance ------------- Evolutions (4) 2000 Regions Visited (15) 3000 Robots Destroyed (101) 505 Value Destroyed (4954) 4954 Prototype IDs (217) 4340 Alien Tech Used (0) 0 Bonus (6185) 6185 TOTAL SCORE: 20984 Bonus ------- High Alert Combat Kills 245 Follower Combat Kills 540 Entered Garrisons 600 Used RIF Installer 1500 Met Data Miner 300 Used Data Conduit 3000 Cogmind --------- Core Integrity 0/850 Matter 275/300 Energy 29/100 System Corruption 1% Temperature Cool (11) Movement Hovering (70) Location -6/Garrison Parts ------- > --- POWER (1) -------- (None) > --- PROPULSION (5) --- Improved Gyrokinetic Inverter Improved Gyrokinetic Inverter Improved Gyrokinetic Inverter Improved Gyrokinetic Inverter > --- UTILITY (6) ------ Improved Core Shielding Relay Coupler [Swarmer] (43) > --- WEAPON (3) ------- (None) > --- INVENTORY (5) ---- Carbon-fiber Leg Remote Datajack Plasma Cutter Axe Chainsword Peak State ------------ > --- POWER ------------ Improved Deuterium Engine > --- PROPULSION ------- Carbon-fiber Leg Improved Gyrokinetic Inverter Improved Gyrokinetic Inverter Improved Gyrokinetic Inverter Improved Gyrokinetic Inverter > --- UTILITY ---------- Advanced Heat Sink Improved Core Shielding Hacking Suite Relay Coupler [NC] Relay Coupler [Swarmer] Corruption Screen > --- WEAPON ----------- Heavy Laser Plasma Rifle Remote Datajack > --- INVENTORY -------- Carbon-fiber Leg Plasma Cutter Axe Axe Chainsword [Rating: 70] Favorites ----------- Power Light Angular Momentum Engine Engine Light Angular Momentum Engine Power Core Light Nuclear Core Propulsion Flexi-carbon Leg Treads Light Treads Leg Flexi-carbon Leg Hover Unit Improved Gyrokinetic Inverter Flight Unit Flight Unit Utility Hacking Suite Device Improved Heat Sink Processor Corruption Screen Hackware Hacking Suite Protection Hardened Medium Armor Plating Weapon Gauss Rifle Energy Gun Medium Laser Ballistic Gun Gauss Rifle Ballistic Cannon Gauss Cannon Special Weapon Remote Datajack Slashing Weapon Katana Special Melee Weapon Datajack Build | -11 -10 -10 -10 -9 -8 -8 -7 -7 -7 -7 -6 -6 -6 -6 -6 ------- Run | Yrd Mat Min Exi Min Mat Gar Fac Low Low Dat Pro Fac Gar Fac Gar Slots Evolved 8 | . . . . . 4 . 2 . . . . 2 . . . Power . | . . . . . . . . . . . . . . . . Propulsion 3 | . . . . . 2 . . . . . . 1 . . . Utility 4 | . . . . . 2 . 2 . . . . . . . . Weapon 1 | . . . . . . . . . . . . 1 . . . Parts Attached 136 | 6 8 6 . . 12 35 2 4 1 . 10 7 33 10 2 Power 14 | 1 2 . . . 3 3 . . . . . . 4 1 . Engine 9 | 1 1 . . . 2 1 . . . . . . 3 1 . Core 5 | . 1 . . . 1 2 . . . . . . 1 . . Reactor . | . . . . . . . . . . . . . . . . Propulsion 53 | 2 2 3 . . 3 16 . 1 1 . 3 2 14 6 . Treads 5 | . . . . . . 3 . . . . 2 . . . . Leg 31 | 2 2 . . . . 9 . 1 1 . . . 14 2 . Wheel . | . . . . . . . . . . . . . . . . Hover 11 | . . 1 . . 3 . . . . . 1 2 . 4 . Flight 6 | . . 2 . . . 4 . . . . . . . . . Utility 39 | 1 2 2 . . 4 8 2 1 . . 5 2 9 2 1 Device 14 | 1 1 1 . . 1 1 . . . . 4 1 3 . 1 Storage . | . . . . . . . . . . . . . . . . Processor 3 | . 1 . . . . . 1 . . . 1 . . . . Hackware 10 | . . . . . 2 4 . . . . . . 4 . . Protection 12 | . . 1 . . 1 3 1 1 . . . 1 2 2 . Artifact . | . . . . . . . . . . . . . . . . Weapon 30 | 2 2 1 . . 2 8 . 2 . . 2 3 6 1 1 Energy Gun 10 | 2 . . . . 1 . . . . . 1 . 5 . 1 Energy Cannon . | . . . . . . . . . . . . . . . . Ballistic Gun 8 | . 2 . . . . 3 . 2 . . . 1 . . . Ballistic Cannon 4 | . . . . . 1 1 . . . . 1 1 . . . Launcher . | . . . . . . . . . . . . . . . . Special Weapon 2 | . . . . . . 2 . . . . . . . . . Impact Weapon . | . . . . . . . . . . . . . . . . Slashing Weapon 5 | . . . . . . 2 . . . . . 1 1 1 . Piercing Weapon . | . . . . . . . . . . . . . . . . Special Melee Weapon 1 | . . 1 . . . . . . . . . . . . . Unidentified Prototypes 2 | . . 1 . . 1 . . . . . . . . . . Parts Lost 63 | . . 6 . . 1 10 . 1 8 3 4 3 17 2 8 Power 7 | . . 1 . . . 2 . . . 1 . . 1 1 1 Propulsion 24 | . . 1 . . 1 5 . 1 3 1 1 3 7 . 1 Utility 15 | . . 1 . . . 2 . . 4 . 1 . 4 . 3 Weapon 17 | . . 3 . . . 1 . . 1 1 2 . 5 1 3 Highest Loss Streak 8 | . . 5 . . 1 4 . 1 6 3 3 2 5 2 8 To Critical Strikes . | . . . . . . . . . . . . . . . . Average Backups 4 | . 3 4 5 5 4 4 4 4 4 2 3 4 4 5 5 Power . | . . . 1 1 . . . . . . . . . . . Propulsion . | . 1 1 1 1 . . 1 1 1 1 . . . 1 1 Utility 1 | . 1 2 3 3 3 1 1 . . . . 1 1 . . Weapon . | . . . . . . . . 1 1 . 1 1 . 2 2 Tool/Special . | . . . . . . . . . . . . . . . . Unused Backups 6 | . 1 1 . . . 1 . 1 . . . 1 . . 1 Power . | . . . . . . . . . . . . . . . . Propulsion 1 | . 1 . . . . . . . . . . . . . . Utility 2 | . . 1 . . . . . 1 . . . . . . . Weapon 2 | . . . . . . . . . . . . 1 . . 1 Tool/Special 1 | . . . . . . 1 . . . . . . . . . Average Slot Usage (%) 82 | . 94 67 57 57 77 84 97 99 74 50 50 65 82 96 90 Engine 4 | . 8 4 . . 5 1 7 7 7 5 . 1 3 5 4 Core 2 | . 5 . . . 2 7 . . . . . . 1 . . Treads 1 | . . . . . . 2 . . . . 11 5 . . . Leg 17 | . 28 10 . . . 17 30 29 21 14 1 . 21 26 5 Hover 5 | . . 1 . . 23 3 . . . . 1 10 5 4 26 Flight 4 | . . 14 28 28 10 9 . . . . . . . . . Device 5 | . 19 4 . . 2 3 . . . . 11 19 6 4 1 Processor 4 | . 3 14 14 14 2 . 5 7 3 . 1 6 6 6 5 Hackware 14 | . . . . . 14 16 23 23 19 15 15 13 18 26 20 Protection 6 | . . 6 14 14 9 7 14 14 9 . . . 3 2 6 Energy Gun 3 | . 20 . . . 6 . . . . . 2 . 1 . 7 Ballistic Gun 3 | . 6 8 . . . 5 . 7 10 2 . 1 2 . . Ballistic Cannon 1 | . . . . . 1 2 6 4 . . 2 4 . . . Special Weapon 1 | . . . . . . 1 1 2 . 7 . . . 6 2 Slashing Weapon 3 | . . . . . . 5 6 . . 3 . . 7 11 7 Peak Build Rating 70 | 8 13 14 7 7 35 44 51 53 48 28 32 51 55 65 70 Average Rating 32 | 4 10 7 7 7 28 28 49 51 35 25 23 36 44 49 61 On Entrance 27 | . 8 10 7 7 7 31 44 51 48 28 14 26 47 51 65 Naked Turns . | . . . . . . . . . . . . . . . . Heaviest Build 35 | 10 11 10 3 3 27 27 30 35 32 16 20 22 28 21 24 Greatest Support 80 | 20 20 20 8 8 27 80 80 80 70 40 50 50 75 75 48 Greatest Overweight (x) 2 | . . . . . . 2 . . 1 . . . 1 1 . Average Overweight (x) . | . . . . . . . . . . . . . . . . Largest Inventory Capacity 5 | 5 5 5 5 5 5 5 5 5 5 5 5 5 5 5 5 Average Capacity 5 | 5 5 5 5 5 5 5 5 5 5 5 5 5 5 5 5 Most Carried 5 | 1 5 5 5 5 5 5 4 5 5 3 5 5 5 5 5 Average Carried 4 | . 3 4 5 5 4 4 4 4 4 2 3 4 4 4 5 Final Capacity 5 | 5 5 5 5 5 5 5 5 5 5 5 5 5 5 5 5 Final Carried 5 | 1 4 5 5 5 5 4 4 5 3 3 5 5 5 5 5 Class Distribution -------------------- 38% | Scavenger-Mutant 27% | Mutant 24% | Hacker-Mutant 3% | Commander-Mutant 3% | Derelict-Mutant Dominant Class ---------------- Scavenger-Mutant | -10/Materials Mutant | -10/Mines Mutant | -10/Exiles Mutant | -9/Mines Hacker-Mutant | -8/Materials Scavenger-Mutant | -8/Garrison Hacker-Mutant | -7/Factory Hacker-Mutant | -7/Lower Caves Hacker-Mutant | -7/Lower Caves Mutant | -7/Data Miner Mutant | -6/Proximity Caves Mutant | -6/Factory Scavenger-Mutant | -6/Garrison Scavenger-Mutant | -6/Factory Mutant | -6/Garrison Resources | -11 -10 -10 -10 -9 -8 -8 -7 -7 -7 -7 -6 -6 -6 -6 -6 ----------- Run | Yrd Mat Min Exi Min Mat Gar Fac Low Low Dat Pro Fac Gar Fac Gar Matter Collected 3141 | 260 170 87 . 14 163 835 203 342 138 . 195 159 419 156 . Remotely . | . . . . . . . . . . . . . . . . Salvage Created 4146 | 83 453 . . . 280 735 231 461 387 . 159 141 901 126 189 Parts 203 | 3 33 . . . 11 52 11 20 18 . 5 12 29 2 7 Haulers Intercepted . | . . . . . . . . . . . . . . . . Recyclers Shooed 1 | . 1 . . . . . . . . . . . . . . Parts Field Recycled . | . . . . . . . . . . . . . . . . Retrieved Matter . | . . . . . . . . . . . . . . . . Parts Self-Destructed 47 | . . . . . . . . 26 18 . 3 . . . . Prevented . | . . . . . . . . . . . . . . . . Kills | -11 -10 -10 -10 -9 -8 -8 -7 -7 -7 -7 -6 -6 -6 -6 -6 ------- Run | Yrd Mat Min Exi Min Mat Gar Fac Low Low Dat Pro Fac Gar Fac Gar Combat Hostiles Destroyed 92 | . 11 . . . 6 25 5 11 8 . 3 3 15 2 3 Melee 17 | . . . . . . 4 . . . . . 1 9 2 1 Guns 43 | . 11 . . . 4 6 . 7 8 . . . 5 . 2 Cannons 30 | . . . . . 1 15 5 4 . . 3 2 . . . Classes Destroyed 15 | 2 4 . . . 2 3 . 2 1 . . . 1 . . Builder 4 | . 3 . . . . . 1 . . . . . . . . Tunneler 1 | 1 . . . . . . . . . . . . . . . Recycler 1 | 1 . . . . . . . . . . . . . . . Watcher 3 | . 1 . . . . . 1 . . . . . 1 . . Swarmer 19 | . 2 . . . . 8 . 3 3 . 1 . 2 . . Cutter 3 | . . . . . . 3 . . . . . . . . . Grunt 45 | . 9 . . . 2 9 4 5 2 . 1 . 10 1 2 Brawler 2 | . . . . . 1 . . . 1 . . . . . . Duelist 3 | . . . . . . . . . 1 . . . 1 1 . Sentry 12 | . . . . . 3 1 1 1 1 . 1 2 1 . 1 Specialist 1 | . . . . . . . . . . . . . 1 . . Hunter 3 | . . . . . . 3 . . . . . . . . . Programmer 2 | . . . . . . 1 . . . . . 1 . . . Behemoth 1 | . . . . . . . . 1 . . . . . . . Mutant 1 | . . . . . . . . 1 . . . . . . . Best Kill Streak 9 | 1 3 . . . 2 9 5 4 7 . 3 1 5 1 2 Combat Bots Only 9 | . 2 . . . 2 9 4 4 7 . 3 1 5 1 2 Max Kills in Single Turn 2 | 1 2 . . . 1 2 1 1 1 . 2 1 1 1 1 Gunslinging . | . . . . . . . . . . . . . . . . Exploded . | . . . . . . . . . . . . . . . . Melee 1 | . . . . . . 1 . . . . . 1 1 1 1 Uniques/NPCs Destroyed . | . . . . . . . . . . . . . . . . Combat | -11 -10 -10 -10 -9 -8 -8 -7 -7 -7 -7 -6 -6 -6 -6 -6 -------- Run | Yrd Mat Min Exi Min Mat Gar Fac Low Low Dat Pro Fac Gar Fac Gar Hostile Shots Fired 1020 | . 57 16 . . 49 218 18 73 47 15 64 76 287 15 85 Missed 361 | . 26 5 . . 17 74 5 26 10 6 22 35 96 3 36 Hits 659 | . 31 11 . . 32 144 13 47 37 9 42 41 191 12 49 Melee 22 | . . . . . . 3 . 2 5 . . . 3 7 2 Projectile 637 | . 31 11 . . 32 141 13 45 32 9 42 41 188 5 47 AOE 8 | . . 8 . . . . . . . . . . . . . Critical Strikes 19 | . . . . . 1 5 . 1 4 . . . 2 4 2 Part Disruptions 1 | . . . . . . . . . . . . . 1 . . Damage Taken 9396 | . 357 383 . . 480 1729 167 631 800 422 515 345 2501 298 768 Core 1910 | . 92 77 . . 78 346 18 50 110 185 96 27 575 69 187 Absorbed by Shields . | . . . . . . . . . . . . . . . . Redirected to Shielding 163 | . . . . . . . . . . . . . 95 . 68 Ignored by Resistances 69 | . . . . . . . . 51 18 . . . . . . Regen/Repaired (Parts) 744 | . . . . . 96 32 . 250 . . . 26 261 79 . Core Remaining (%) 47 | 100 . . . 32 . 22 . . . . 34 . . . . Volleys Fired 369 | 8 57 1 . . 32 84 22 34 32 6 8 18 57 7 3 Largest 2 | 2 2 2 . . 1 2 1 2 2 1 1 2 2 1 2 Hottest 144 | 100 100 40 . . 61 51 40 68 56 28 48 68 138 5 144 Shots Fired 498 | 16 114 2 . . 32 98 22 58 47 6 8 20 63 7 5 Gun 364 | 16 114 2 . . 24 46 . 44 47 6 . 2 59 . 4 Cannon 115 | . . . . . 8 47 22 14 . . 8 16 . . . Launcher . | . . . . . . . . . . . . . . . . Special 19 | . . . . . . 5 . . . . . 2 4 7 1 Kinetic 307 | . 30 2 . . 8 93 22 58 47 6 8 18 15 . . Thermal 172 | 16 84 . . . 24 . . . . . . . 44 . 4 Explosive . | . . . . . . . . . . . . . . . . Electromagnetic . | . . . . . . . . . . . . . . . . Robot Hit Streak 14 | 4 6 5 . . 14 7 7 8 12 . 2 4 11 5 8 Robot Miss Streak 6 | 2 4 . . . 2 6 1 2 2 . 2 1 4 1 1 Penetration Max 1 | . . . . . . 1 . 1 1 . 1 . . . . Secondary Targets 7 | . . . . . . 2 . 1 3 . . . 1 . . Max Gunslinging Chain 1 | . . . . . . 1 . 1 1 . . . 1 . . Shots Hit Robots 373 | 10 65 3 . . 23 67 14 38 35 1 4 14 73 17 9 Core Hits 159 | 2 29 2 . . 7 32 8 19 15 . 3 6 29 3 4 Critical Kills 3 | . . . . . . . . . . . 2 . 1 . . Critical Parts Destroyed 5 | . . . . . . 2 . 2 . . 1 . . . . Critical Strikes 38 | 2 . . . . 4 10 2 6 . 1 4 2 6 . 1 Burn 7 | 2 . . . . 4 . . . . . . . 1 . . Destroy 9 | . . . . . . 2 . 2 . . 4 . 1 . . Blast 13 | . . . . . . 5 2 4 . . . 2 . . . Sever 9 | . . . . . . 3 . . . 1 . . 4 . 1 Melee Attacks 98 | . . 1 . . . 16 . 1 . 1 . 3 52 18 6 Impact . | . . . . . . . . . . . . . . . . Slashing 97 | . . . . . . 16 . 1 . 1 . 3 52 18 6 Piercing . | . . . . . . . . . . . . . . . . Sneak Attacks 6 | . . 1 . . . . . . . 1 . . 1 3 . Combat Hostiles 3 | . . . . . . . . . . . . . . 3 . Follow-up Attacks 3 | . . . . . . . . . . . . . 1 2 . Damage Inflicted 8712 | 149 841 30 . . 544 1798 413 894 744 59 156 374 1983 478 249 Guns 4235 | 149 841 25 . . 360 557 . 560 744 . . . 931 . 68 Cannons 2281 | . . . . . 184 951 413 334 . . 156 243 . . . Explosions . | . . . . . . . . . . . . . . . . Melee 2188 | . . . . . . 287 . . . 59 . 131 1052 478 181 Ramming 8 | . . 5 . . . 3 . . . . . . . . . Kinetic 4623 | . 267 25 . . 184 1508 413 894 744 . 156 243 189 . . Thermal 1893 | 149 574 . . . 360 . . . . . . . 742 . 68 Explosive . | . . . . . . . . . . . . . . . . Electromagnetic . | . . . . . . . . . . . . . . . . Impact . | . . . . . . . . . . . . . . . . Slashing 2188 | . . . . . . 287 . . . 59 . 131 1052 478 181 Piercing . | . . . . . . . . . . . . . . . . Highest Corruption 5 | . 5 5 5 5 . 1 . . 2 2 2 . . . 1 Average Corruption 2 | . 3 5 5 5 . 1 . . 2 2 2 . . . 1 Corruption Purged . | . . . . . . . . . . . . . . . . Corruption Blocked 5 | . . . . . . . . . . . . 1 1 . 3 Effects 26 | . 2 10 2 2 . 4 . . 1 3 2 . . . . Message Errors 8 | . 2 2 . 1 . 2 . . . 1 . . . . . Matter Fused 5 | . . 2 1 1 . 1 . . . . . . . . . Heat Flow Errors 4 | . . 1 1 . . . . . 1 . 1 . . . . Energy Discharges 5 | . . 2 . . . 1 . . . 1 1 . . . . Parts Fused 1 | . . 1 . . . . . . . . . . . . . Data Loss (minor) 3 | . . 2 . . . . . . . 1 . . . . . Overload Shots . | . . . . . . . . . . . . . . . . Overflow Damage 161 | . . . . . 3 66 10 3 . . . . 50 29 . Projectiles 82 | . . . . . 3 66 10 3 . . . . . . . Explosions . | . . . . . . . . . . . . . . . . Melee 79 | . . . . . . . . . . . . . 50 29 . Knockbacks 14 | . . . . . . 11 2 1 . . . . . . . Impact . | . . . . . . . . . . . . . . . . Kinetic 13 | . . . . . . 10 2 1 . . . . . . . Secondary 1 | . . . . . . 1 . . . . . . . . . Self-Inflicted Damage 1 | . . . . . . 1 . . . . . . . . . Shots . | . . . . . . . . . . . . . . . . Rammed 2 | . . . . . . 2 . . . . . . . . . Targets Rammed 4 | . . 2 . . . 2 . . . . . . . . . Kicked 2 | . . 2 . . . . . . . . . . . . . Crushed . | . . . . . . . . . . . . . . . . Highest Temperature 236 | 195 129 236 163 . 67 35 51 88 146 . 87 . . 44 151 Average Temperature 36 | 84 24 101 82 . 23 7 29 39 26 . 44 . . 24 37 Received Heat Transfer 2584 | . 174 89 . . 225 432 90 269 171 . 54 108 744 45 183 Siege Activations . | . . . . . . . . . . . . . . . . Martial Activations . | . . . . . . . . . . . . . . . . Shielding Activations . | . . . . . . . . . . . . . . . . Robots Disrupted . | . . . . . . . . . . . . . . . . Combat Hostiles . | . . . . . . . . . . . . . . . . Robots Corrupted . | . . . . . . . . . . . . . . . . Combat Hostiles . | . . . . . . . . . . . . . . . . Parts Fried . | . . . . . . . . . . . . . . . . Impact Corruptions . | . . . . . . . . . . . . . . . . Robots Melted 3 | 1 . . . . 1 . . . . . . . 1 . . Combat Hostiles 2 | . . . . . 1 . . . . . . . 1 . . Parts Melted 6 | . 1 . . . 3 . 1 . . . . . 1 . . Heat Transferred 4812 | 592 1702 . . . 962 . . . . . . . 1419 . 137 Parts Sabotaged . | . . . . . . . . . . . . . . . . Parts Stolen . | . . . . . . . . . . . . . . . . Parts Stripped . | . . . . . . . . . . . . . . . . Power Chain Reactions . | . . . . . . . . . . . . . . . . Alert | -11 -10 -10 -10 -9 -8 -8 -7 -7 -7 -7 -6 -6 -6 -6 -6 ------- Run | Yrd Mat Min Exi Min Mat Gar Fac Low Low Dat Pro Fac Gar Fac Gar Maximum Alert Level 3 | . . . . . . 3 2 . . . . . 2 1 . Low Security (%) 60 | 100 100 100 . 100 100 13 5 . . . . 100 32 86 100 Level 1 14 | . . . . . . 20 . . . . . . 53 13 . Level 2 19 | . . . . . . 39 94 . . . . . 14 . . Level 3 5 | . . . . . . 26 . . . . . . . . . Level 4 . | . . . . . . . . . . . . . . . . Level 5 . | . . . . . . . . . . . . . . . . High Security . | . . . . . . . . . . . . . . . . Max Security . | . . . . . . . . . . . . . . . . Peak Influence 913 | 5 109 78 . . 80 913 598 . . . . 60 430 215 64 Initial 468 | . . 39 . . . . 468 . . . . 28 35 215 33 Average 216 | 2 45 41 . . 24 507 490 . . . . 18 240 122 36 Influence Increases 3745 | 10 409 148 . . 240 1093 221 260 190 . 105 151 656 93 169 Destroy 0b10 Robot/C 2160 | . 220 40 . . 120 660 140 220 160 . 60 60 360 40 80 Destroy 0b10 Robot/NC 50 | 10 20 . . . . . 15 . . . . . 5 . . Destroy Leader 274 | . 72 10 . . 40 30 22 30 . . . 30 40 . . Allied During Kill 117 | . . 8 . . . 32 30 10 . . . . 18 5 14 Successful Hack 100 | . 7 . . . 33 16 4 . . . . 24 . 16 . Select Force Hacks 60 | . 60 . . . . . . . . . . . . . . Disable Machine 75 | . . . . . . 45 . . . . . . 15 15 . Anti-Garrison Action 300 | . . . . . . 150 . . . . . . 150 . . Destroy Structure 69 | . . . . . 2 25 10 . . . . 7 23 2 . Partial Spotted 45 | . 15 30 . . . . . . . . . . . . . Lose Combat Pursuer 495 | . 15 60 . . 45 135 . . 30 . 45 30 45 15 75 Influence Decreases 3713 | 10 308 221 28 . 240 200 955 333 247 29 60 146 295 456 185 Entered New Map 864 | . . 62 28 . . . 425 60 17 29 . 17 15 196 15 Time Decay 1498 | 10 270 149 . . 214 . 230 203 130 . 30 112 . 150 . Lost Part 527 | . . 10 . . 10 100 . 10 80 . 30 17 170 20 80 Lost Ally 486 | . . . . . 16 100 . 60 20 . . . 110 90 90 Purge Threat 338 | . 38 . . . . . 300 . . . . . . . . Squads Dispatched 14 | . 5 . . . 2 . 2 . 1 . . 1 . 3 . Investigation 5 | . 2 . . . 1 . . . . . . . . 2 . Extermination 1 | . . . . . . . 1 . . . . . . . . Reinforcement 6 | . 3 . . . 1 . . . . . . 1 . 1 . Assault 2 | . . . . . . . 1 . 1 . . . . . . Garrison . | . . . . . . . . . . . . . . . . Intercept . | . . . . . . . . . . . . . . . . Searches Triggered . | . . . . . . . . . . . . . . . . Construction Impeded . | . . . . . . . . . . . . . . . . Haulers Reinforced 1 | . . . . . . . . . . . . . . 1 . Active Scanning Responses . | . . . . . . . . . . . . . . . . Cargo Convoy Interrupts . | . . . . . . . . . . . . . . . . Stealth | -11 -10 -10 -10 -9 -8 -8 -7 -7 -7 -7 -6 -6 -6 -6 -6 --------- Run | Yrd Mat Min Exi Min Mat Gar Fac Low Low Dat Pro Fac Gar Fac Gar Distress Signals 6 | . 3 . . . 3 . . . . . . . . . . Communications Jammed . | . . . . . . . . . . . . . . . . Distress Signals . | . . . . . . . . . . . . . . . . Times Spotted 209 | . 24 18 . . 25 41 9 13 16 4 6 5 24 5 19 Peak Tracking Total 12 | . 5 12 . . 8 9 4 3 9 4 3 3 7 3 11 Tactical Retreats 21 | . 1 2 . . 2 7 . . 2 . 1 1 2 1 2 Traps | -11 -10 -10 -10 -9 -8 -8 -7 -7 -7 -7 -6 -6 -6 -6 -6 ------- Run | Yrd Mat Min Exi Min Mat Gar Fac Low Low Dat Pro Fac Gar Fac Gar Traps Triggered 9 | . 3 . . . . 1 . . . . . . 3 . 2 Indirectly . | . . . . . . . . . . . . . . . . Trap Hack Attempts . | . . . . . . . . . . . . . . . . Triggered . | . . . . . . . . . . . . . . . . Disarmed . | . . . . . . . . . . . . . . . . Reprogrammed . | . . . . . . . . . . . . . . . . Reused . | . . . . . . . . . . . . . . . . Traps Extracted . | . . . . . . . . . . . . . . . . Installed . | . . . . . . . . . . . . . . . . Triggered . | . . . . . . . . . . . . . . . . Machines | -11 -10 -10 -10 -9 -8 -8 -7 -7 -7 -7 -6 -6 -6 -6 -6 ---------- Run | Yrd Mat Min Exi Min Mat Gar Fac Low Low Dat Pro Fac Gar Fac Gar Machines Disabled 11 | . . . . . . 6 . 1 . . . . 3 1 . Max in Single Turn 1 | . . . . . . 1 . 1 . . . . 1 . . Garrison Relay 4 | . . . . . . 2 . . . . . . 2 . . Phase Generator 1 | . . . . . . 1 . . . . . . . . . Machines Repaired . | . . . . . . . . . . . . . . . . Machines Dismantled 2 | . . . . . . 1 . . . . . . 1 . . Machines Sabotaged . | . . . . . . . . . . . . . . . . Overloaded Fab Kills . | . . . . . . . . . . . . . . . . Hacking | -11 -10 -10 -10 -9 -8 -8 -7 -7 -7 -7 -6 -6 -6 -6 -6 --------- Run | Yrd Mat Min Exi Min Mat Gar Fac Low Low Dat Pro Fac Gar Fac Gar Machines Accessed 34 | . 7 1 1 . 10 2 3 . . 4 . 3 1 2 . Terminals 20 | . 5 . . . 7 2 3 . . . . 2 1 . . Fabricators 1 | . . . . . . . . . . . . . . 1 . Repair Stations 1 | . . . . . 1 . . . . . . . . . . Recycling Units 2 | . 2 . . . . . . . . . . . . . . Scanalyzers 1 | . . . . . 1 . . . . . . . . . . Garrison Access 3 | . . . . . 1 . . . . . . 1 . 1 . Total Hacks 148 | . 20 1 23 . 43 6 11 . . 30 . 6 2 6 . Successful 119 | . 11 1 23 . 36 3 9 . . 30 . 3 . 3 . Failed 29 | . 9 . . . 7 3 2 . . . . 3 2 3 . Catastrophic 2 | . 1 . . . . . . . . . . 1 . . . Database Lockouts . | . . . . . . . . . . . . . . . . Manual 60 | . 19 . . . 27 2 9 . . . . 2 . 1 . Terminals 72 | . 18 . . . 31 6 11 . . . . 4 2 . . Fabricators 4 | . . . . . . . . . . . . . . 4 . Repair Stations 6 | . . . . . 6 . . . . . . . . . . Recycling Units 2 | . 2 . . . . . . . . . . . . . . Scanalyzers 4 | . . . . . 4 . . . . . . . . . . Garrison Access 6 | . . . . . 2 . . . . . . 2 . 2 . Terminal Hacks 71 | . 3 1 23 . 7 3 3 . . 30 . 1 . . . Record 34 | . . . 23 . . . . . . 11 . . . . . Part Schematic 11 | . . . . . . . . . . 11 . . . . . Robot Schematic 5 | . . . . . . . . . . 5 . . . . . Robot Analysis 3 | . 1 . . . 2 . . . . . . . . . . Prototype ID Bank 4 | . . . . . 1 . . . . 3 . . . . . Open Door 2 | . . 1 . . . 1 . . . . . . . . . Branch Access Points 1 | . . . . . 1 . . . . . . . . . . Terminal Index 2 | . 1 . . . . . 1 . . . . . . . . Alert Level 1 | . . . . . 1 . . . . . . . . . . Unreport Threat 3 | . 1 . . . . . 2 . . . . . . . . Registered Components 1 | . . . . . . . . . . . . 1 . . . Zone Layout 2 | . . . . . 2 . . . . . . . . . . Garrison Registry 1 | . . . . . . 1 . . . . . . . . . Patrol Navigation 1 | . . . . . . 1 . . . . . . . . . Fabricator Hacks 1 | . . . . . . . . . . . . . . 1 . Load Schematic 1 | . . . . . . . . . . . . . . 1 . Repair Station Hacks 6 | . . . . . 6 . . . . . . . . . . Scan Component 3 | . . . . . 3 . . . . . . . . . . Repair 3 | . . . . . 3 . . . . . . . . . . Recycling Unit Hacks . | . . . . . . . . . . . . . . . . Scanalyzer 4 | . . . . . 4 . . . . . . . . . . Insert Component 2 | . . . . . 2 . . . . . . . . . . Analyze 2 | . . . . . 2 . . . . . . . . . . Garrison Access Hacks 3 | . . . . . 1 . . . . . . 1 . 1 . Unlock Access 3 | . . . . . 1 . . . . . . 1 . 1 . Unauthorized Hacks 34 | . 8 . . . 18 . 6 . . . . 1 . 1 . Terminals 30 | . 6 . . . 17 . 6 . . . . 1 . . . Track 1 | . . . . . 1 . . . . . . . . . . Assimilate 4 | . . . . . 3 . 1 . . . . . . . . Botnet 12 | . 3 . . . 6 . 2 . . . . 1 . . . Operators 2 | . . . . . 1 . 1 . . . . . . . . Skim 10 | . 3 . . . 5 . 2 . . . . . . . . Search 1 | . . . . . 1 . . . . . . . . . . Fabricators . | . . . . . . . . . . . . . . . . Repair Stations . | . . . . . . . . . . . . . . . . Recycling Units 2 | . 2 . . . . . . . . . . . . . . Tunnel 2 | . 2 . . . . . . . . . . . . . . Scanalyzers . | . . . . . . . . . . . . . . . . Garrison Access 2 | . . . . . 1 . . . . . . . . 1 . Reprogram 2 | . . . . . 1 . . . . . . . . 1 . Data Cores Recovered . | . . . . . . . . . . . . . . . . Used . | . . . . . . . . . . . . . . . . Hacking Detections 20 | . 5 . . . 6 1 3 . . . . 2 1 2 . Full Trace Events 3 | . 1 . . . . . . . . . . . 1 1 . Feedback Events . | . . . . . . . . . . . . . . . . Feedback Blocked . | . . . . . . . . . . . . . . . . Robot Schematics Acquired 5 | . . . . . . . . . . 5 . . . . . Robots Built . | . . . . . . . . . . . . . . . . Authchips . | . . . . . . . . . . . . . . . . Time . | . . . . . . . . . . . . . . . . Total Robot Build Rating . | . . . . . . . . . . . . . . . . Part Schematics Acquired 13 | . . . . . 2 . . . . 11 . . . . . Parts Built . | . . . . . . . . . . . . . . . . Authchips . | . . . . . . . . . . . . . . . . Time . | . . . . . . . . . . . . . . . . Total Part Build Rating . | . . . . . . . . . . . . . . . . Parts Repaired 3 | . . . . . 3 . . . . . . . . . . Time 142 | . . . . . 142 . . . . . . . . . . Parts Recycled . | . . . . . . . . . . . . . . . . Recycled Matter . | . . . . . . . . . . . . . . . . Retrieved Matter . | . . . . . . . . . . . . . . . . Retrieved Components . | . . . . . . . . . . . . . . . . Parts Scanalyzed 2 | . . . . . 2 . . . . . . . . . . Part Schematics Acquired 2 | . . . . . 2 . . . . . . . . . . Parts Damaged . | . . . . . . . . . . . . . . . . Bothacking | -11 -10 -10 -10 -9 -8 -8 -7 -7 -7 -7 -6 -6 -6 -6 -6 ------------ Run | Yrd Mat Min Exi Min Mat Gar Fac Low Low Dat Pro Fac Gar Fac Gar Used RIF Installer 3 | . . . . . . 1 . . . . . . 1 . 1 Coupler Efficiency 2 | . . . . . . . . . . . . . 1 . 1 Robots Hacked 15 | . . 1 . . . 4 . . . . . 1 3 5 1 Non-combat 5 | . . 1 . . . 1 . . . . . 1 . 2 . Combat 10 | . . . . . . 3 . . . . . . 3 3 1 Robot Hacks Applied 16 | . . 1 . . . 4 . . . . . 1 3 6 1 parse_system 1 | . . 1 . . . . . . . . . . . . . deconstruct_bot 1 | . . . . . . . . . . . . . . 1 . reboot_system 1 | . . . . . . . . . . . . . . 1 . overwrite_iff 2 | . . . . . . . . . . . . . . 1 1 formatsys_low 4 | . . . . . . 1 . . . . . 1 . 2 . formatsys_high 7 | . . . . . . 3 . . . . . . 3 1 . Relay Couplers Released 18 | . . . . . . 11 . . . . . . 7 . . Machine Destruction 15 | . . . . . . 8 . . . . . . 7 . . Programmers 3 | . . . . . . 3 . . . . . . . . . Attached 7 | . . . . . . 3 . . . . . . 4 . . Fabnet Peak Effective % . | . . . . . . . . . . . . . . . . Robots Rewired 10 | . . . . . . 6 . . . . . . 4 . . Allies Hacked . | . . . . . . . . . . . . . . . . Hacks Repelled . | . . . . . . . . . . . . . . . . Allies | -11 -10 -10 -10 -9 -8 -8 -7 -7 -7 -7 -6 -6 -6 -6 -6 -------- Run | Yrd Mat Min Exi Min Mat Gar Fac Low Low Dat Pro Fac Gar Fac Gar Total Allies 35 | . . 4 . . 2 12 1 . . . . 1 7 7 1 Largest Group 5 | . . 4 . . 2 5 5 5 2 . . 1 3 4 4 Highest-Rated Group 133 | . . 71 . . 20 133 92 78 33 . . 23 98 112 119 Highest-Rated Ally 47 | . . 31 . . 10 39 24 23 23 . . 23 46 29 47 Total Orders 12 | . . 1 . . . 1 . 1 . . . 1 4 2 2 STAY 3 | . . . . . . . . . . . . . 2 . 1 AID 7 | . . . . . . 1 . 1 . . . 1 2 1 1 DROP 1 | . . . . . . . . . . . . . . 1 . RETURN 1 | . . 1 . . . . . . . . . . . . . Ally Attacks 170 | . . 20 . . . 48 23 8 . . . . 22 32 17 Total Damage 3109 | . . 216 . . . 829 473 149 . . . . 690 477 275 Kills 23 | . . 5 . . . 9 4 1 . . . . 3 . 1 Allies Corrupted 2 | . . . . . . . . . . . . . . 2 . Allies Melted . | . . . . . . . . . . . . . . . . Intel | -11 -10 -10 -10 -9 -8 -8 -7 -7 -7 -7 -6 -6 -6 -6 -6 ------- Run | Yrd Mat Min Exi Min Mat Gar Fac Low Low Dat Pro Fac Gar Fac Gar Active Infowar (turns) 1130 | 6 697 87 . . . . . . . . 72 243 25 . . IFF 268 | . . . . . . . . . . . . 243 25 . . Terrain 790 | 6 697 87 . . . . . . . . . . . . . Traps 72 | . . . . . . . . . . . 72 . . . . Robot Analysis Total 154 | . 1 . . . 2 . . . . 151 . . . . . Derelict Logs Recovered 4 | . . 2 . . . . . 1 . . 1 . . . . Drone Launches 1 | . . 1 . . . . . . . . . . . . . Drone Recoveries 1 | . . 1 . . . . . . . . . . . . . Exploration | -11 -10 -10 -10 -9 -8 -8 -7 -7 -7 -7 -6 -6 -6 -6 -6 ------------- Run | Yrd Mat Min Exi Min Mat Gar Fac Low Low Dat Pro Fac Gar Fac Gar Turns Passed 6138 | 87 697 336 59 78 710 1028 486 486 267 119 219 246 866 315 139 Spaces Moved 5089 | 48 416 605 160 210 800 796 315 285 155 92 292 245 328 220 122 Core 479 | 5 . 68 . . . 41 . . . 15 255 95 . . . Treads 102 | . . . . . . 42 . . . . 37 23 . . . Legs 2147 | 43 416 79 . . . 314 315 285 155 77 . . 299 164 . Wheels . | . . . . . . . . . . . . . . . . Hover 1201 | . . . . . 751 116 . . . . . 127 29 56 122 Flight 1160 | . . 458 160 210 49 283 . . . . . . . . . Fastest Speed 17 | 50 120 37 37 37 37 17 120 120 120 50 50 50 62 68 68 Average Speed 80 | 112 120 49 37 37 57 77 120 120 120 108 63 66 112 107 68 Slowest Speed 190 | 120 120 120 37 37 66 190 120 120 190 120 160 160 180 140 70 Overloaded Moves 11 | . . . . . . 11 . . . . . . . . . Propulsion Burnouts . | . . . . . . . . . . . . . . . . Robots Hopped 5 | . . 3 . 2 . . . . . . . . . . . Potential Cave-ins . | . . . . . . . . . . . . . . . . Cave-ins Triggered . | . . . . . . . . . . . . . . . . Exploration Rate (%) 43 | 4 88 99 50 51 48 64 11 45 30 77 54 12 34 6 17 Regions Visited 15 Branch Regions 7 Pre-discovered Areas 27 | . 2 . 1 . . . . . . 24 . . . . . Known Exits Taken 5 | . . . . . 1 . 1 . . . 1 1 . 1 . Unknown Exits Taken 8 | 1 1 1 1 1 . . . 1 1 1 . . . . . Scrap Searched 10 | . . 3 . 1 . . . 4 . . 2 . . . . Spaces Dug 15 | . . . . . 3 . 2 . . . . 5 3 2 . Terrain Destroyed 39 | . . . . . 3 . 9 3 2 . 6 10 4 2 . Melee 5 | . . . . . . . . . . . . . 3 2 . Projectile 34 | . . . . . 3 . 9 3 2 . 6 10 1 . . AOE . | . . . . . . . . . . . . . . . . Terrain Rammed . | . . . . . . . . . . . . . . . . Walls Destroyed . | . . . . . . . . . . . . . . . . Machines Disabled . | . . . . . . . . . . . . . . . . Actions | -11 -10 -10 -10 -9 -8 -8 -7 -7 -7 -7 -6 -6 -6 -6 -6 --------- Run | Yrd Mat Min Exi Min Mat Gar Fac Low Low Dat Pro Fac Gar Fac Gar Total 6387 | 62 499 634 159 207 1015 1059 399 368 188 102 312 300 655 268 160 Wait 511 | . 9 12 . . 156 41 59 38 . . . 20 147 6 23 Move 5064 | 47 415 598 159 205 799 795 314 284 154 91 291 244 327 219 122 Hop 5 | . . 3 . 2 . . . . . . . . . . . Pick Up 23 | 1 4 3 . . 4 4 . 1 . . 1 2 2 1 . Fast Attach 107 | 6 4 6 . . 12 24 2 4 . . 9 6 23 10 1 Attach 14 | . . 1 . . 1 3 . . 2 1 1 1 4 . . Detach 12 | . 1 2 . . 1 1 . 1 . 1 2 1 2 . . Swap 47 | . 4 . . . 3 15 2 2 . 2 . 2 10 2 5 Drop 66 | . 5 5 . . 7 25 . 3 . . . 2 11 8 . Fire 369 | 8 57 1 . . 32 84 22 34 32 6 8 18 57 7 3 Melee 89 | . . 1 . . . 16 . 1 . 1 . 3 47 14 6 Ram 2 | . . . . . . 2 . . . . . . . . . Kick 2 | . . 2 . . . . . . . . . . . . . Crush . | . . . . . . . . . . . . . . . . Escape Stasis . | . . . . . . . . . . . . . . . . Rewire 59 | . . . . . . 40 . . . . . 1 17 1 . Trap . | . . . . . . . . . . . . . . . . Miscellaneous 17 | . . . . . . 9 . . . . . . 8 . . Route ------- -11/Scrapyard -10/Materials (discovered 5 exits: *Mat x3 / *Min / [Sub]) -10/Mines (discovered 3 exits: *Mat x2 / *Exi) -10/Exiles -9/Mines -8/Materials (discovered 4 exits: *Fac x3 / Gar) -8/Garrison (discovered 3 exits: *Fac x3) -7/Factory (discovered 2 exits: Fac / *Low) -7/Lower Caves -7/Lower Caves -7/Data Miner -6/Proximity Caves -6/Factory -6/Garrison -6/Factory -6/Garrison History --------- Turn | Location | Event 41 | -11/Scrapyard | Discovered new exit (range 15) 88 | -11/Scrapyard | Entered Materials 240 | -10/Materials | Discovered new exit (range 14) 420 | -10/Materials | Discovered new exit (range 12) 464 | -10/Materials | Discovered new exit (range 12) 628 | -10/Materials | Discovered new exit (range 16) 636 | -10/Materials | Build established: Scavenger-Mutant 709 | -10/Materials | Discovered new exit (range 13) 785 | -10/Materials | Entered Mines 791 | -10/Mines | Discovered new exit (range 8) 852 | -10/Mines | Assembled infested the area 876 | -10/Mines | Core integrity fell below 50% 894 | -10/Mines | Assisted by bots powering up and referring to "LRC-V3" 895 | -10/Mines | Identified exit to Materials 906 | -10/Mines | Lost 5 parts (1p1n1u2w) 941 | -10/Mines | Learned Materials machine intel 945 | -10/Mines | A weapon hastily lodged in a ceiling crevice suddenly fell to the ground 960 | -10/Mines | Received a Rocket Launcher from a helpful Derelict 1003 | -10/Mines | Found the Drone Emporium 1004 | -10/Mines | Found Prototype Device 1004 | -10/Mines | Identified Sensor Drone Bay 1028 | -10/Mines | Found a damaged Exp. Sensor Array with a note attached 1033 | -10/Mines | Found Prototype Device 1044 | -10/Mines | Received a Mining Laser from a helpful Derelict 1120 | -10/Mines | Deemed a non-threat by the Exiles lab entrance 1120 | -10/Mines | Discovered new exit (range 5) 1121 | -10/Mines | Entered Exiles 1130 | -10/Exiles | Met 8R-AWN 1137 | -10/Exiles | Met EX-HEX 1151 | -10/Exiles | Met EX-DEC 1153 | -10/Exiles | Learned location of Zion (-6) 1160 | -10/Exiles | Met EX-BIN 1177 | -10/Exiles | Discovered new exit (range 11) 1180 | -10/Exiles | Entered Mines 1227 | -9/Mines | Found a hidden stash of uninstalled traps 1252 | -9/Mines | Discovered new exit (range 16) 1258 | -9/Mines | Entered Materials 1258 | -8/Materials | Evolved 4 slots: Propulsion x2, Utility x2 1259 | -8/Materials | Loaded intel: 68 machine locations 1322 | -8/Materials | Identified Exp. Sensor Array 1408 | -8/Materials | Build established: Mutant 1548 | -8/Materials | Discovered new exit (range 6) 1585 | -8/Materials | Identified exit to Garrison 1636 | -8/Materials | Learned Storage emergency access door positions 1695 | -8/Materials | Repaired Imp. Hover Unit 1716 | -8/Materials | Learned Factory stockpile data 1747 | -8/Materials | Repaired Cmb. Airjet 1785 | -8/Materials | Identified exit to Factory 1787 | -8/Materials | Build established: Hacker-Mutant 1808 | -8/Materials | Repaired Adv. Beam Rifle 1844 | -8/Materials | Learned Factory trap positions 1892 | -8/Materials | Learned Factory emergency access door positions 1931 | -8/Materials | Learned 12 Factory zone layouts 1968 | -8/Materials | Entered Garrison 2024 | -8/Garrison | Triggered checkpoint 2097 | -8/Garrison | Destroyed 9 combat bots 2101 | -8/Garrison | Lost 4 parts (1p2n1u) 2146 | -8/Garrison | Rescued a captive Derelict 2147 | -8/Garrison | Rescued a captive Derelict 2170 | -8/Garrison | Discovered exit to Factory (range 12) 2194 | -8/Garrison | Core integrity fell below 50% 2204 | -8/Garrison | Triggered checkpoint 2260 | -8/Garrison | Garrison Relay disabled 2284 | -8/Garrison | Triggered checkpoint 2314 | -8/Garrison | Triggered checkpoint 2403 | -8/Garrison | Lost 3 parts (1n1u1w) 2595 | -8/Garrison | Phase Generator disabled 2632 | -8/Garrison | Discovered exit to Factory (range 24) 2632 | -8/Garrison | Discovered exit to Factory (range 61) 2632 | -8/Garrison | Discovered exit to Factory (range 59) 2652 | -8/Garrison | Build established: Scavenger-Mutant 2712 | -8/Garrison | Triggered checkpoint 2722 | -8/Garrison | Triggered checkpoint 2818 | -8/Garrison | Triggered checkpoint 2827 | -8/Garrison | Installed Relay Interface Framework 2839 | -8/Garrison | Garrison Relay disabled 2996 | -8/Garrison | Entered Factory 2996 | -7/Factory | Accompanied by 5 allies 2996 | -7/Factory | Evolved 2 slots: Utility x2 2997 | -7/Factory | Identified exit to Lower Caves 2997 | -7/Factory | Identified exit to Factory 2998 | -7/Factory | Loaded intel: 81 trap records 3340 | -7/Factory | Build established: Hacker-Mutant 3396 | -7/Factory | First assault squad dispatched 3482 | -7/Factory | Entered Lower Caves 3482 | -7/Lower Caves | Accompanied by 5 allies 3536 | -7/Lower Caves | Spotted B-75 Beast 3562 | -7/Lower Caves | Destroyed B-75 Beast 3689 | -7/Lower Caves | Learned Factory interactive machine intel 3754 | -7/Lower Caves | Attacked by a delusional Derelict stockpiling parts 3819 | -7/Lower Caves | Encountered a Warlord checkpoint 3886 | -7/Lower Caves | Attracted the attention of an 0b10 checkpoint 3954 | -7/Lower Caves | Discovered new exit (range 9) 3968 | -7/Lower Caves | Entered another Lower Caves area 3968 | -7/Lower Caves | Accompanied by 2 allies 4074 | -7/Lower Caves | Attracted the attention of an 0b10 outpost 4094 | -7/Lower Caves | Destroyed 7 combat bots 4138 | -7/Lower Caves | Lost 6 parts (2n3u1w) 4224 | -7/Lower Caves | Discovered new exit (range 10) 4235 | -7/Lower Caves | Entered Data Miner 4235 | -7/Data Miner | Discovered new exit (range 6) 4258 | -7/Data Miner | Met Data Miner 4282 | -7/Data Miner | Learned location of Section 7 (-2) 4282 | -7/Data Miner | Acquired the access code to Warlord's prototype stash 4303 | -7/Data Miner | Received God Mode back door access code from Data Miner 4317 | -7/Data Miner | Interfaced with the Data Conduit 4351 | -7/Data Miner | Core integrity fell below 50% 4354 | -7/Data Miner | Entered Proximity Caves 4372 | -6/Proximity Caves | Lost 3 parts (1p1n1w) 4406 | -6/Proximity Caves | Attracted the attention of an 0b10 checkpoint 4438 | -6/Proximity Caves | Spotted B-75 Beast 4479 | -6/Proximity Caves | Lost 3 parts (1u2w) 4573 | -6/Proximity Caves | Entered Factory 4573 | -6/Factory | Evolved 2 slots: Propulsion x1, Weapon x1 4574 | -6/Factory | Loaded intel: 265 machine locations 4575 | -6/Factory | Loaded intel: 54 interactive machine locations 4744 | -6/Factory | Build established: Mutant 4792 | -6/Factory | Identified exit to Garrison 4819 | -6/Factory | Entered Garrison 4819 | -6/Garrison | Accompanied by 1 ally 4820 | -6/Garrison | Loaded intel: 31 machine locations 4835 | -6/Garrison | Triggered checkpoint 4840 | -6/Garrison | Garrison Relay disabled 4901 | -6/Garrison | Lost 3 parts (1p1n1w) 5182 | -6/Garrison | Lost 5 parts (3n1u1w) 5187 | -6/Garrison | Build established: Scavenger-Mutant 5340 | -6/Garrison | Core integrity fell below 50% 5365 | -6/Garrison | Lost 3 allies 5397 | -6/Garrison | Lost 5 parts (1n2u2w) 5447 | -6/Garrison | Triggered checkpoint 5560 | -6/Garrison | Garrison Relay disabled 5585 | -6/Garrison | Triggered checkpoint 5654 | -6/Garrison | Expanded RIF knowledge: Coupler Efficiency 5672 | -6/Garrison | Discovered new exit (range 10) 5685 | -6/Garrison | Entered Factory 5685 | -6/Factory | Accompanied by 2 allies 5686 | -6/Factory | Loaded intel: 310 machine locations 5865 | -6/Factory | Lost 4 allies 5970 | -6/Factory | Identified exit to Garrison 6000 | -6/Factory | Entered Garrison 6000 | -6/Garrison | Accompanied by 4 allies 6001 | -6/Garrison | Loaded intel: 38 machine locations 6056 | -6/Garrison | Expanded RIF knowledge: Coupler Efficiency 6066 | -6/Garrison | Triggered checkpoint 6071 | -6/Garrison | Spotted B-75 Beast 6073 | -6/Garrison | Core integrity fell below 20% 6121 | -6/Garrison | Lost 5 allies 6139 | -6/Garrison | Destroyed by H-66 Slayer with Gauss Rifle Last Messages --------------- 06096_ Plasma Rifle destroyed. 06098_ The unstable cave ceiling collapses. 06099_ Critical hit (Burn: +37). 06101_ Imp. Deuterium Engine destroyed. 06102_ The unstable cave ceiling collapses. 06107_ Adv. Heat Sink destroyed. 06117_ Carbon-fiber Leg destroyed. 06121_ Y-54 Guardian destroyed. 06125_ Slug penetrates Wall. 06126_ G-50 Soldier Carbon-fiber Leg severed. 06128_ Relay Coupler [NC] destroyed. 06128_ Corruption Screen intercepted 3% system corruption. 06128_ Corruption Screen expended. 06128_ Slug penetrates Wall. 06130_ Axe destroyed. 06130_ System corrupted by crushing effect (+1). 06131_ Slug penetrates Wall. 06136_ Penetrated by Slug. 06136_ Hvy. Laser destroyed. Map ----- +----------------------------------------------------+ | ?????????????????????????"""""???????????? | | ?????????????????????????????????????????? | | ?????????????????????????????????????????? | | ??????????????????????????"""????????????? | | ?????????????????????????????????????????? | | ?????????????????????????????????????????? | | ?????????????????????????????????????????? | | ??????????################################ | | ??????????# | | ??????????# | | ??????????# %! | | ??????????# #### #####+#######+##### | | ??????????# #?# # ##??# #?????# #???# | | ??????????#####?# # # #??# #?????# #???# | | ????????????????## # ##??# #?????# #???# | | ????????????????# # #??# #?????# #???# | | ????????????????## ##??# #?????# #???# | | ?????????????????### ###???# #?????# #???# | | ???????????????????# #?????# #?????# #???# | | ???????????????????# #?????# #?????# #???? | | ??????############?# #?????# #?????# #???? | | ????#"""""" #?# #?????? ??????? ????? | | ????#" "" " ### #?###?? ??????? ????? | | ???##" " ## Y!##h##!!### ##!!##? ????? | | ???#"** #b =ghg= ????? | | ???#" "# @## # !## #?????? ????? | | ???#" ####### #[[ !#? ??????? ????? | | ???#" """???# #[[ !#? ??????? ????? | | ???#"* ?"???########??????????????? | | ???#" " " ""?????????????????????????? | | ???#"*"*"" " ""?????????????????????????? | | ???#"""""""" "?????????????????????????? | | ????###########??????????????????????????? | | ?????????????????????????????????????????? | | ?????????????????????????????????????????? | | ?????????????????????????????????????????? | | ?????????????????????????????????????????? | | ?????????????????????????????????????????? | | ?????????????????????????????????????????? | | ?????????????????????????????????????????? | | ?????????????????????????????????????????? | | ?????????????????????????????????????????? | | ?????????????????????????????????????????? | | | | | | | | | | | | | | | +----------------------------------------------------+ Best States ------------- Heat Dissipation 70 Energy Generation 18 Energy Capacity 290 Matter Stores 300 Matter Capacity 300 Sight Range 16 Terrain Scan Range 16 Terrain Scan Density 85 Corruption Block 5 Armor Coverage 600 Resistance: TH 15 Core Shielding 30 Propulsion Shielding 33 Evasion (%) 64 Core Analysis 6 Recoil Reduction 3 Offensive Hacking 20 Defensive Hacking 10 Relay Coupler Types 3 Relay Coupler Value 97 Item Schematics ----------------- Cmb. Airjet | -8/Materials | Scanalyzed Exp. Sensor Array | -8/Materials | Scanalyzed Combat Drone Bay | -7/Data Miner | Free Lgt. Regenerative Plating | -7/Data Miner | Free Cld. Aerolev Unit | -7/Data Miner | Free Gravity Neutralizer | -7/Data Miner | Free Antimatter Cannon | -7/Data Miner | Free Antigrav System | -7/Data Miner | Free Point Defense System | -7/Data Miner | Free Enh. Gauss Cannon | -7/Data Miner | Free Adv. Drone Bay | -7/Data Miner | Free Phase Gun | -7/Data Miner | Free Adv. VSS Leg | -7/Data Miner | Free Robot Schematics ------------------ B-48 Gladiator | -7/Data Miner | Free M-22 Extractor | -7/Data Miner | Free Y-54 Guardian | -7/Data Miner | Free O-24 Administrator | -7/Data Miner | Free A-15 Conveyor | -7/Data Miner | Free Fabricated ------------ Nothing Repaired ---------- Imp. Hover Unit | 11% | -8/Materials Cmb. Airjet | 74% | -8/Materials Adv. Beam Rifle | 70% | -8/Materials Alien Tech Used ----------------- None Achievements -------------- None Challenges ------------ None Game ------ Seed ExperimentalExplosiveBeam Manual? 0 Play Time 01:31:08 Cumulative 269.1 hours Start 2025.06.23 @ 13:50:02 End 2025.06.23 @ 16:48:15 Sessions 7 Manual Loads 0 Difficulty Rogue Special Mode None Game No. 133 Rogue 133 Adventurer 0 Explorer 0 Win Type - Total 16 Types 6/0/5/1/3/1/0/0/0/0 Lore% 83 Gallery% 71 Achievement% 67 Wizard Run 0 Options --------- Layout 1 ASCII 0 Keyboard 0 Movement Numpad Keybinds 0 Fullscreen 1 Font 24/Smallcaps Map View 50x35 Zoom Use 0% Tactical HUD 1 Map Filters NONE Filters NONE Steam 1 RUN: c59de603-db24-47e8-89ec-e2f073816a8f